{"text_format":"3","workbook":"xlsx","n_sheets":7,"sheets":["Lundi","Mardi","Mercredi","Jeudi","Vendredi","Samedi","Dimanche"],"not_rendered":{"defined_names":24},"read":"whole","date_system":"1900"}

{"sheet":"Lundi","index":0,"n_rows":10,"n_cols":13,"rows_kept":10,"merged":[[1,1,2,1],[1,2,1,10],[1,11,1,12],[2,2,2,10],[2,11,2,12]]}
[null,"PLANNING"]
[null,"LUNDI","Semaine du : ",{"$nulls":8},"DATE"]
[null,null,"Nom du service : ",{"$nulls":8},"SERVICE"]
[null,"Nom de l’employé","7:00","8:00","9:00","10:00","11:00","12:00","13:00","14:00","15:00","Maladie ?","TOTAL"]
[null,"Marie M","responsable","responsable","responsable","responsable","responsable","responsable","responsable","responsable","responsable",null,{"$f":"IFERROR(COUNTIF(Lundi[[#This Row],[7:00]:[15:00]],\"*\"),\"\")","v":9}]
[null,"David P",null,"hôte de caisse","hôte de caisse","hôte de caisse","hôte de caisse",{"$nulls":5},{"$f":"IFERROR(COUNTIF(Lundi[[#This Row],[7:00]:[15:00]],\"*\"),\"\")","v":4}]
[null,"Jérôme R",null,"réception","réception","réception","réception ","réception","réception","réception",null,null,{"$f":"IFERROR(COUNTIF(Lundi[[#This Row],[7:00]:[15:00]],\"*\"),\"\")","v":7}]
[null,"Sydney B",null,"réception","réception","réception","réception ","réception","réception","réception",null,null,{"$f":"IFERROR(COUNTIF(Lundi[[#This Row],[7:00]:[15:00]],\"*\"),\"\")","v":7}]
[null,"Christian L",{"$nulls":10},{"$f":"IFERROR(COUNTIF(Lundi[[#This Row],[7:00]:[15:00]],\"*\"),\"\")","v":0}]
[null,"Nicoletta G",{"$nulls":5},"hôte de caisse","hôte de caisse","hôte de caisse","hôte de caisse",null,{"$f":"IFERROR(COUNTIF(Lundi[[#This Row],[7:00]:[15:00]],\"*\"),\"\")","v":4}]

{"sheet":"Mardi","index":1,"n_rows":10,"n_cols":13,"rows_kept":10,"merged":[[1,1,2,1],[1,2,1,10],[1,11,1,12],[2,2,2,10],[2,11,2,12]]}
[null,{"$f":"Titre_PLANNING","v":"PLANNING"}]
[null,"MARDI","Semaine du : ",{"$nulls":8},{"$f":"DATE","v":"DATE"}]
[null,null,"Nom du service : ",{"$nulls":8},{"$f":"SERVICE","v":"SERVICE"}]
[null,"Nom de l’employé","7:00","8:00","9:00","10:00","11:00","12:00","13:00","14:00","15:00","Maladie ?","TOTAL"]
[null,"Marie M","responsable","responsable","responsable","responsable","responsable","responsable","responsable","responsable","responsable",null,{"$f":"IFERROR(COUNTIF(Mardi[[#This Row],[7:00]:[15:00]],\"*\"),\"\")","v":9}]
[null,"David P",null,"hôte de caisse","hôte de caisse","hôte de caisse","hôte de caisse",{"$nulls":5},{"$f":"IFERROR(COUNTIF(Mardi[[#This Row],[7:00]:[15:00]],\"*\"),\"\")","v":4}]
[null,"Jérôme R",null,"réception","réception","réception","réception ","réception","réception","réception",null,null,{"$f":"IFERROR(COUNTIF(Mardi[[#This Row],[7:00]:[15:00]],\"*\"),\"\")","v":7}]
[null,"Sydney B",null,"réception","réception","réception","réception ","réception","réception","réception",null,null,{"$f":"IFERROR(COUNTIF(Mardi[[#This Row],[7:00]:[15:00]],\"*\"),\"\")","v":7}]
[null,"Christian L",{"$nulls":9},"Maladie",{"$f":"IFERROR(COUNTIF(Mardi[[#This Row],[7:00]:[15:00]],\"*\"),\"\")","v":0}]
[null,"Nicoletta G",{"$nulls":5},"hôte de caisse","hôte de caisse","hôte de caisse","hôte de caisse",null,{"$f":"IFERROR(COUNTIF(Mardi[[#This Row],[7:00]:[15:00]],\"*\"),\"\")","v":4}]

{"sheet":"Mercredi","index":2,"n_rows":10,"n_cols":13,"rows_kept":10,"merged":[[1,1,2,1],[1,2,1,10],[1,11,1,12],[2,2,2,10],[2,11,2,12]]}
[null,{"$f":"Titre_PLANNING","v":"PLANNING"}]
[null,"MERCREDI","Semaine du : ",{"$nulls":8},{"$f":"DATE","v":"DATE"}]
[null,null,"Nom du service : ",{"$nulls":8},{"$f":"SERVICE","v":"SERVICE"}]
[null,"Nom de l’employé","7:00","8:00","9:00","10:00","11:00","12:00","13:00","14:00","15:00","Maladie ?","TOTAL"]
[null,"Marie M","responsable","responsable","responsable","responsable","responsable","responsable","responsable","responsable","responsable",null,{"$f":"IFERROR(COUNTIF(Mercredi[[#This Row],[7:00]:[15:00]],\"*\"),\"\")","v":9}]
[null,"David P",null,"hôte de caisse","hôte de caisse","hôte de caisse","hôte de caisse",{"$nulls":5},{"$f":"IFERROR(COUNTIF(Mercredi[[#This Row],[7:00]:[15:00]],\"*\"),\"\")","v":4}]
[null,"Jérôme R",null,"réception","réception","réception","réception ","réception","réception","réception",null,null,{"$f":"IFERROR(COUNTIF(Mercredi[[#This Row],[7:00]:[15:00]],\"*\"),\"\")","v":7}]
[null,"Sydney B",null,"réception","réception","réception","réception ","réception","réception","réception",null,null,{"$f":"IFERROR(COUNTIF(Mercredi[[#This Row],[7:00]:[15:00]],\"*\"),\"\")","v":7}]
[null,"Christian L",{"$nulls":9},"Maladie",{"$f":"IFERROR(COUNTIF(Mercredi[[#This Row],[7:00]:[15:00]],\"*\"),\"\")","v":0}]
[null,"Nicoletta G",{"$nulls":5},"hôte de caisse","hôte de caisse","hôte de caisse","hôte de caisse",null,{"$f":"IFERROR(COUNTIF(Mercredi[[#This Row],[7:00]:[15:00]],\"*\"),\"\")","v":4}]

{"sheet":"Jeudi","index":3,"n_rows":10,"n_cols":13,"rows_kept":10,"merged":[[1,1,2,1],[1,2,1,10],[1,11,1,12],[2,2,2,10],[2,11,2,12]]}
[null,{"$f":"Titre_PLANNING","v":"PLANNING"}]
[null,"JEUDI","Semaine du : ",{"$nulls":8},{"$f":"DATE","v":"DATE"}]
[null,null,"Nom du service : ",{"$nulls":8},{"$f":"SERVICE","v":"SERVICE"}]
[null,"Nom de l’employé","7:00","8:00","9:00","10:00","11:00","12:00","13:00","14:00","15:00","Maladie ?","TOTAL"]
[null,"Marie M","responsable","responsable","responsable","responsable","responsable","responsable","responsable","responsable","responsable",null,{"$f":"IFERROR(COUNTIF(Jeudi[[#This Row],[7:00]:[15:00]],\"*\"),\"\")","v":9}]
[null,"David P",null,"hôte de caisse","hôte de caisse","hôte de caisse","hôte de caisse",{"$nulls":5},{"$f":"IFERROR(COUNTIF(Jeudi[[#This Row],[7:00]:[15:00]],\"*\"),\"\")","v":4}]
[null,"Jérôme R",null,"réception","réception","réception","réception ","réception","réception","réception",null,null,{"$f":"IFERROR(COUNTIF(Jeudi[[#This Row],[7:00]:[15:00]],\"*\"),\"\")","v":7}]
[null,"Sydney B",null,"réception","réception","réception","réception ","réception","réception","réception",null,null,{"$f":"IFERROR(COUNTIF(Jeudi[[#This Row],[7:00]:[15:00]],\"*\"),\"\")","v":7}]
[null,"Christian L",{"$nulls":9},"Maladie",{"$f":"IFERROR(COUNTIF(Jeudi[[#This Row],[7:00]:[15:00]],\"*\"),\"\")","v":0}]
[null,"Nicoletta G",{"$nulls":5},"hôte de caisse","hôte de caisse","hôte de caisse","hôte de caisse",null,{"$f":"IFERROR(COUNTIF(Jeudi[[#This Row],[7:00]:[15:00]],\"*\"),\"\")","v":4}]

{"sheet":"Vendredi","index":4,"n_rows":10,"n_cols":13,"rows_kept":10,"merged":[[1,1,2,1],[1,2,1,10],[1,11,1,12],[2,2,2,10],[2,11,2,12]]}
[null,{"$f":"Titre_PLANNING","v":"PLANNING"}]
[null,"VENDREDI","Semaine du : ",{"$nulls":8},{"$f":"DATE","v":"DATE"}]
[null,null,"Nom du service : ",{"$nulls":8},{"$f":"SERVICE","v":"SERVICE"}]
[null,"Nom de l’employé","7:00","8:00","9:00","10:00","11:00","12:00","13:00","14:00","15:00","Maladie ?","TOTAL"]
[null,"Marie M","responsable","responsable","responsable","responsable","responsable","responsable","responsable","responsable","responsable",null,{"$f":"IFERROR(COUNTIF(Vendredi[[#This Row],[7:00]:[15:00]],\"*\"),\"\")","v":9}]
[null,"David P",null,"hôte de caisse","hôte de caisse","hôte de caisse","hôte de caisse",{"$nulls":5},{"$f":"IFERROR(COUNTIF(Vendredi[[#This Row],[7:00]:[15:00]],\"*\"),\"\")","v":4}]
[null,"Jérôme R",null,"réception","réception","réception","réception ","réception","réception","réception",null,null,{"$f":"IFERROR(COUNTIF(Vendredi[[#This Row],[7:00]:[15:00]],\"*\"),\"\")","v":7}]
[null,"Sydney B",null,"réception","réception","réception","réception ","réception","réception","réception",null,null,{"$f":"IFERROR(COUNTIF(Vendredi[[#This Row],[7:00]:[15:00]],\"*\"),\"\")","v":7}]
[null,"Christian L",{"$nulls":9},"Maladie",{"$f":"IFERROR(COUNTIF(Vendredi[[#This Row],[7:00]:[15:00]],\"*\"),\"\")","v":0}]
[null,"Nicoletta G",{"$nulls":5},"hôte de caisse","hôte de caisse","hôte de caisse","hôte de caisse",null,{"$f":"IFERROR(COUNTIF(Vendredi[[#This Row],[7:00]:[15:00]],\"*\"),\"\")","v":4}]

{"sheet":"Samedi","index":5,"n_rows":10,"n_cols":13,"rows_kept":10,"merged":[[1,1,2,1],[1,2,1,10],[1,11,1,12],[2,2,2,10],[2,11,2,12]]}
[null,{"$f":"Titre_PLANNING","v":"PLANNING"}]
[null,"SAMEDI","Semaine du : ",{"$nulls":8},{"$f":"DATE","v":"DATE"}]
[null,null,"Nom du service : ",{"$nulls":8},{"$f":"SERVICE","v":"SERVICE"}]
[null,"Nom de l’employé","7:00","8:00","9:00","10:00","11:00","12:00","13:00","14:00","15:00","Maladie ?","TOTAL"]
[null,"Marie M","responsable","responsable","responsable","responsable","responsable","responsable","responsable","responsable","responsable",null,{"$f":"IFERROR(COUNTIF(Samedi[[#This Row],[7:00]:[15:00]],\"*\"),\"\")","v":9}]
[null,"David P",null,"hôte de caisse","hôte de caisse","hôte de caisse","hôte de caisse",{"$nulls":5},{"$f":"IFERROR(COUNTIF(Samedi[[#This Row],[7:00]:[15:00]],\"*\"),\"\")","v":4}]
[null,"Jérôme R",null,"réception","réception","réception","réception ","réception","réception","réception",null,null,{"$f":"IFERROR(COUNTIF(Samedi[[#This Row],[7:00]:[15:00]],\"*\"),\"\")","v":7}]
[null,"Sydney B",null,"réception","réception","réception","réception ","réception","réception","réception",null,null,{"$f":"IFERROR(COUNTIF(Samedi[[#This Row],[7:00]:[15:00]],\"*\"),\"\")","v":7}]
[null,"Christian L",{"$nulls":9},"Maladie",{"$f":"IFERROR(COUNTIF(Samedi[[#This Row],[7:00]:[15:00]],\"*\"),\"\")","v":0}]
[null,"Nicoletta G",{"$nulls":5},"hôte de caisse","hôte de caisse","hôte de caisse","hôte de caisse",null,{"$f":"IFERROR(COUNTIF(Samedi[[#This Row],[7:00]:[15:00]],\"*\"),\"\")","v":4}]

{"sheet":"Dimanche","index":6,"n_rows":10,"n_cols":13,"rows_kept":10,"merged":[[1,1,2,1],[1,2,1,10],[1,11,1,12],[2,2,2,10],[2,11,2,12]]}
[null,{"$f":"Titre_PLANNING","v":"PLANNING"}]
[null,"DIMANCHE","Semaine du : ",{"$nulls":8},{"$f":"DATE","v":"DATE"}]
[null,null,"Nom du service : ",{"$nulls":8},{"$f":"SERVICE","v":"SERVICE"}]
[null,"Nom de l’employé","7:00","8:00","9:00","10:00","11:00","12:00","13:00","14:00","15:00","Maladie ?","TOTAL"]
[null,"Marie M","responsable","responsable","responsable","responsable","responsable","responsable","responsable","responsable","responsable",null,{"$f":"IFERROR(COUNTIF(Dimanche[[#This Row],[7:00]:[15:00]],\"*\"),\"\")","v":9}]
[null,"David P",null,"hôte de caisse","hôte de caisse","hôte de caisse","hôte de caisse",{"$nulls":5},{"$f":"IFERROR(COUNTIF(Dimanche[[#This Row],[7:00]:[15:00]],\"*\"),\"\")","v":4}]
[null,"Jérôme R",null,"réception","réception","réception","réception ","réception","réception","réception",null,null,{"$f":"IFERROR(COUNTIF(Dimanche[[#This Row],[7:00]:[15:00]],\"*\"),\"\")","v":7}]
[null,"Sydney B",null,"réception","réception","réception","réception ","réception","réception","réception",null,null,{"$f":"IFERROR(COUNTIF(Dimanche[[#This Row],[7:00]:[15:00]],\"*\"),\"\")","v":7}]
[null,"Christian L",{"$nulls":9},"Maladie",{"$f":"IFERROR(COUNTIF(Dimanche[[#This Row],[7:00]:[15:00]],\"*\"),\"\")","v":0}]
[null,"Nicoletta G",{"$nulls":5},"hôte de caisse","hôte de caisse","hôte de caisse","hôte de caisse",null,{"$f":"IFERROR(COUNTIF(Dimanche[[#This Row],[7:00]:[15:00]],\"*\"),\"\")","v":4}]